fUSD/lending_fUSD_20240424
["ID","MTS","AMOUNT","RATE_DAILY","PERIOD"]
[323416145,1713973863653,-500.0,0.00012328,2]
[323416146,1713973863663,-2113.48,0.00012328,2]
[323416147,1713973863672,-838.0,0.00012328,2]
[323416148,1713973863681,-1931.43,0.00012328,2]
[323416149,1713973863691,-2703.75,0.00012328,2]
[323416150,1713973863701,-2822.26,0.00012328,2]
[323416151,1713973863710,-2276.67,0.00012328,2]
[323416152,1713973863720,-500.0,0.00012328,2]
[323416153,1713973863729,-500.0,0.00012328,2]
[323416154,1713973863739,-570.66,0.00012328,2]
[323416155,1713973863749,-500.0,0.00012328,2]
[323416156,1713973863759,-1592.29,0.00012328,2]
[323416157,1713973863768,-3059.74,0.00012328,2]
[323416158,1713973863779,-548.12,0.00012328,2]
[323416159,1713973863788,-500.0,0.00012328,2]
[323416160,1713973863798,-2461.5,0.00012328,2]
[323416161,1713973863807,-615.38,0.00012328,2]
[323416162,1713973863816,-1324.12,0.00012328,2]
[323416163,1713973863826,-3971.12,0.00012328,2]
[323416164,1713973863835,-500.0,0.00012328,2]
[323416165,1713973863846,-2626.7,0.00012328,2]
[323416166,1713973863855,-723.69,0.00012328,2]
[323416167,1713973863865,-500.0,0.00012328,2]
[323416168,1713973863875,-13126.48,0.00012328,2]
[323416169,1713973863885,-614.22,0.00012328,2]
[323416170,1713973863895,-4645.68,0.00012328,2]
[323416171,1713973863904,-11122.29,0.00012328,2]
[323416172,1713973863914,-506.68,0.00012328,2]
[323416173,1713973863924,-562.53,0.00012328,2]
[323416174,1713973863934,-2271.05,0.00012328,2]
[323416175,1713973863943,-1405.08,0.00012328,2]
[323416176,1713973863954,-867.56,0.00012328,2]
[323416177,1713973863963,-1234.4,0.00012328,2]
[323416178,1713973863973,-743.5,0.00012328,2]
[323416179,1713973863982,-8796.92,0.00012328,2]
[323416180,1713973863993,-500.0,0.00012328,2]
[323416181,1713973864003,-1738.01,0.00012328,2]
[323416182,1713973864013,-1578.64,0.00012328,2]
[323416183,1713973864022,-1828.37,0.00012328,2]
[323416184,1713973864032,-500.0,0.00012328,2]
[323416185,1713973864043,-9330.53,0.00012328,2]
[323416186,1713973864052,-795.52,0.00012328,2]
[323416187,1713973864062,-3280.03,0.00012328,2]
[323416188,1713973864072,-1090.54,0.00012328,2]
[323416189,1713973864083,-1095.8,0.00012328,2]
[323416190,1713973864097,-5837.67,0.00012328,2]
[323416191,1713973864106,-527.3,0.00012328,2]
[323416192,1713973864117,-878.78,0.00012328,2]
[323416193,1713973864127,-4350.58,0.00012328,2]
[323416194,1713973864137,-2413.37,0.00012328,2]
[323416195,1713973864148,-10692.15,0.00012328,2]
[323416196,1713973864158,-500.0,0.00012328,2]
[323416197,1713973864173,-500.0,0.00012328,2]
[323416198,1713973864183,-500.0,0.00012328,2]
[323416199,1713973864193,-2457.4,0.00012328,2]
[323416200,1713973864203,-5368.24,0.00012328,2]
[323416201,1713973864213,-11377.06,0.00012328,2]
[323416202,1713973864223,-1695.31,0.00012328,2]
[323416203,1713973864233,-809.12,0.00012328,2]
[323416204,1713973864243,-2886.54,0.00012328,2]
[323416205,1713973864253,-1930.29,0.00012328,2]
[323416206,1713973864264,-4022.2,0.00012328,2]
[323416207,1713973864273,-4740.44,0.00012328,2]
[323416208,1713973864283,-1781.75,0.00012328,2]
[323416209,1713973864293,-1741.92,0.00012328,2]
[323416210,1713973864302,-7921.2,0.00012328,2]
[323416211,1713973864312,-5590.58,0.00012328,2]
[323416212,1713973864321,-1092.68,0.00012328,2]
[323416213,1713973864331,-2482.67,0.00012328,2]
[323416214,1713973864341,-707.08,0.00012328,2]
[323416215,1713973864350,-731.57,0.00012328,2]
[323416216,1713973864360,-500.0,0.00012328,2]
[323416217,1713973864370,-706.86,0.00012328,2]
[323416218,1713973864379,-601.86,0.00012328,2]
[323416219,1713973864391,-521.04,0.00012328,2]
[323416220,1713973864401,-1326.14,0.00012328,2]
[323416221,1713973864411,-905.06,0.00012328,2]
[323416222,1713973864421,-2148.12,0.00012328,2]
[323416223,1713973864432,-500.0,0.00012328,2]
[323416224,1713973864441,-5074.84,0.00012328,2]
[323416225,1713973864451,-8100.5,0.00012328,2]
[323416226,1713973864461,-500.0,0.00012328,2]
[323416227,1713973864471,-3326.55,0.00012328,2]
[323416228,1713973864481,-1602.14,0.00012328,2]
[323416229,1713973864491,-500.0,0.00012328,2]
[323416230,1713973864502,-4497.56,0.00012328,2]
[323416231,1713973864511,-3026.64,0.00012328,2]
[323416232,1713973864521,-2052.23,0.00012328,2]
[323416233,1713973864531,-9822.69,0.00012328,2]
[323416234,1713973864541,-4405.07,0.00012328,2]
[323416235,1713973864550,-500.0,0.00012328,2]
[323416236,1713973864560,-717.53,0.00012328,2]
[323416237,1713973864569,-2098.14,0.00012328,2]
[323416238,1713973864579,-2191.42,0.00012328,2]
[323416239,1713973864588,-500.0,0.00012328,2]
[323416240,1713973864598,-5797.1,0.00012328,2]
[323416241,1713973864608,-2435.72,0.00012328,2]
[323416242,1713973864617,-1057.35,0.00012328,2]
[323416243,1713973864626,-527.14,0.00012328,2]
[323416244,1713973864640,-2137.67,0.00012328,2]
[323416245,1713973864650,-1518.64,0.00012328,2]
[323416246,1713973864660,-1185.13,0.00012328,2]
[323416247,1713973864669,-1109.54,0.00012328,2]
[323416248,1713973864679,-621.43,0.00012328,2]
[323416249,1713973864689,-3781.82,0.00012328,2]
[323416250,1713973864699,-2275.33,0.00012328,2]
[323416251,1713973864709,-527.32,0.00012328,2]
[323416252,1713973864718,-500.0,0.00012328,2]
[323416253,1713973864730,-1281.6,0.00012328,2]
[323416254,1713973864740,-555.23,0.00012328,2]
[323416255,1713973864750,-6060.52,0.00012328,2]
[323416256,1713973864761,-2236.66,0.00012328,2]
[323416257,1713973864771,-1388.93,0.00012328,2]
[323416258,1713973864781,-2081.12,0.00012328,2]
[323416259,1713973864791,-2902.5,0.00012328,2]
[323416260,1713973864801,-500.0,0.00012328,2]
[323416261,1713973864810,-500.0,0.00012328,2]
[323416262,1713973864820,-500.0,0.00012328,2]
[323416263,1713973864830,-500.0,0.00012328,2]
[323416264,1713973864840,-500.0,0.00012328,2]
[323416265,1713973864850,-4287.31,0.00012328,2]
[323416266,1713973864860,-1732.94,0.00012328,2]
[323416267,1713973864870,-8648.42,0.00012328,2]
[323416268,1713973864880,-2875.89,0.00012328,2]
[323416269,1713973864893,-3362.06,0.00012328,2]
[323416270,1713973864903,-1128.64,0.00012328,2]
[323416271,1713973864913,-500.0,0.00012328,2]
[323416272,1713973864922,-1102.28,0.00012328,2]
[323416273,1713973864932,-3321.44,0.00012328,2]
[323416274,1713973864942,-1467.03,0.00012328,2]
[323416275,1713973864953,-7496.52,0.00012328,2]
[323416276,1713973864963,-569.8,0.00012328,2]
[323416277,1713973864973,-17150.15,0.00012328,2]
[323416278,1713973864982,-500.0,0.00012328,2]
[323416279,1713973864992,-758.94,0.00012328,2]
[323416280,1713973865002,-912.96,0.00012328,2]
[323416281,1713973865012,-500.0,0.00012328,2]
[323416282,1713973865022,-500.0,0.00012328,2]
[323416283,1713973865031,-1328.77,0.00012328,2]
[323416284,1713973865042,-5671.3,0.00012328,2]
[323416285,1713973865052,-802.02110276,0.00012328,2]
[323416286,1713973865532,-322.29889724,0.00012328,2]
[323416287,1713973865544,-2912.7,0.00012328,2]
[323416288,1713973865554,-558.12,0.00012328,2]
[323416289,1713973865565,-1520.14,0.00012328,2]
[323416290,1713973865576,-500.0,0.00012328,2]
[323416291,1713973865587,-500.0,0.00012328,2]
[323416292,1713973865597,-500.0,0.00012328,2]
[323416293,1713973865608,-500.0,0.00012328,2]
[323416294,1713973865618,-500.0,0.00012328,2]
[323416295,1713973865629,-1553.07,0.00012328,2]
[323416296,1713973865646,-7940.4,0.00012328,2]
[323416297,1713973865656,-504.14,0.00012328,2]
[323416298,1713973865666,-3869.35,0.00012328,2]
[323416299,1713973865675,-500.0,0.00012328,2]
[323416300,1713973865686,-2581.86,0.00012328,2]
[323416301,1713973865695,-532.51,0.00012328,2]
[323416302,1713973865706,-3595.17,0.00012328,2]
[323416303,1713973865715,-3.92718244,0.00012328,2]
[323416304,1713973865739,-617.00281756,0.00012328,2]
[323416305,1713973865749,-500.0,0.00012328,2]
[323416306,1713973865759,-1641.11070738,0.00012328,2]
[323416307,1713973865772,-465.38929262,0.00012328,2]
[323416308,1713973865783,-500.0,0.00012328,2]
[323416309,1713973865794,-150.0,0.00012373,2]
[323416310,1713973865804,-150.0,0.00012387,2]
[323416311,1713973865815,-150.0,0.00012412,2]
[323416312,1713973865826,-150.0,0.00012415,2]
[323416313,1713973865836,-150.0,0.00012416,2]
[323416314,1713973865845,-252.72825547,0.00012427,2]
[323416315,1713973865856,-150.0,0.00012437,2]
[323416316,1713973865866,-150.0,0.00012455,2]
[323416317,1713973865876,-150.0,0.00012459,2]
[323416318,1713973865962,-150.0,0.0001248,2]
[323416319,1713973865973,-360.09195783,0.000125,2]
[323416320,1713973866063,-2257.57,0.00011232,2]
[323416321,1713973866074,-1053.90056695,0.00011506,2]
[323416322,1713973866086,-815.7900007,0.00011506,2]
[323416323,1713973866102,-680.45,0.00011506,2]
[323416324,1713973866114,-654.66896625,0.00011506,2]
[323416325,1713973866126,-736.26788472,0.00011506,2]
[323416326,1713973866143,-1185.32101497,0.00011506,2]
[323416327,1713973866156,-2624.27156641,0.00011506,2]
[323416328,1713973866166,-1278.92997355,0.00011506,2]
[323416329,1713973866191,-748.0,0.00011506,2]
[323416330,1713973866239,-230.64002645,0.00011506,2]
[323416331,1713973866249,-815.56386735,0.0001178,2]
[323416332,1713973866261,-311.38569847,0.0001178,2]
[323416333,1713973866283,-6623.72043418,0.0001178,2]
[323416334,1713973866292,-2257.57,0.0001178,2]
[323416335,1713973866302,-150.485,0.00012051,2]
[323416336,1713973866311,-639.90804217,0.000125,2]
[323416337,1713973866321,-157.33184734,0.00012516,2]
[323416338,1713973866330,-1000.0,0.00012541,2]
[323416339,1713973866340,-2397.18,0.00012601,2]
[323416340,1713973866351,-4434.22,0.00012601,2]
[323416341,1713973866361,-3007.56,0.00012601,2]
[323416342,1713973866372,-2427.61839952,0.00012601,2]
[323416343,1713973866383,-579.94160048,0.00012601,2]
[323416344,1713973866398,-5347.4,0.00012601,2]
[323416345,1713973866409,-1010.2022334,0.00012601,2]
[323416346,1713973866441,-6482.28168,0.00012054,2]
[323416347,1713973866454,-1268.38832,0.00012054,2]
[323416348,1713973866464,-1546.9377666,0.00012601,2]
[323416349,1713973866474,-908.08,0.00012601,2]
[323416350,1713973866484,-2154.97,0.00012601,2]
[323416351,1713973866493,-2682.86,0.00012601,2]
[323416352,1713973866503,-3494.09,0.00012601,2]
[323416353,1713973866512,-2100.4,0.00012601,2]
[323416354,1713973866522,-1049.7,0.00012601,2]
[323416355,1713973866531,-5947.23811173,0.00012601,2]
[323416356,1713973866543,-2446.64188827,0.00012601,2]
[323416357,1713973866552,-7305.4430038,0.00012601,2]
[323416358,1713973866562,-5282.5769962,0.00012601,2]
[323416359,1713973866571,-121.10490715,0.00012601,2]
[323416360,1713973866584,-306.38998025,0.00012601,2]
[323416361,1713973866597,-1702.3851126,0.00012601,2]
[323416362,1713973866607,-667.29,0.00012602,2]
[323416363,1713973866617,-333.80139975,0.00012602,2]
[323416364,1713973866627,-143.36753165,0.00012602,2]
[323416365,1713973867253,-155.0,0.00010957,2]
[323416366,1713973867265,-345.0,0.00012054,2]
[323416367,1713973867282,-1912.57,0.00012054,2]
[323416368,1713973867293,-7750.67,0.00012328,2]
[323416369,1713973867302,-2257.57,0.00012328,2]
[323416370,1713973867312,-356.63246835,0.00012602,2]
[323416371,1713973867321,-500.0,0.00012602,2]
[323416372,1713973867331,-949.51,0.00012602,2]
[323416373,1713973867341,-500.0,0.00012602,2]
[323416374,1713973867350,-500.0,0.00012602,2]
[323416375,1713973867360,-563.58,0.00012602,2]
[323416376,1713973867369,-500.0,0.00012602,2]
[323416377,1713973867381,-500.0,0.00012602,2]
[323416378,1713973867394,-500.0,0.00012602,2]
[323416379,1713973867404,-500.0,0.00012602,2]
[323416380,1713973867414,-500.0,0.00012602,2]
[323416381,1713973867423,-500.0,0.00012602,2]
[323416382,1713973867433,-500.0,0.00012602,2]
[323416383,1713973867443,-820.37,0.00012602,2]
[323416384,1713973867452,-500.0,0.00012602,2]
[323416385,1713973867462,-500.0,0.00012602,2]
[323416386,1713973867472,-500.0,0.00012602,2]
[323416387,1713973867482,-500.0,0.00012602,2]
[323416388,1713973867491,-500.0,0.00012602,2]
[323416389,1713973867501,-500.0,0.00012602,2]
[323416390,1713973867512,-500.0,0.00012602,2]
[323416391,1713973867522,-500.0,0.00012602,2]
[323416392,1713973867531,-790.5,0.00012602,2]
[323416393,1713973867540,-500.0,0.00012602,2]
[323416394,1713973867550,-948.45,0.00012602,2]
[323416395,1713973867560,-500.0,0.00012602,2]
[323416396,1713973867569,-500.0,0.00012602,2]
[323416397,1713973867580,-500.0,0.00012602,2]
[323416398,1713973867589,-500.0,0.00012602,2]
[323416399,1713973867599,-1612.81,0.00012602,2]
[323416400,1713973867610,-500.0,0.00012602,2]
[323416401,1713973867619,-540.2,0.00012602,2]
[323416402,1713973867631,-500.0,0.00012602,2]
[323416403,1713973867644,-500.0,0.00012602,2]
[323416404,1713973867654,-711.69,0.00012602,2]
[323416405,1713973867664,-568.11,0.00012602,2]
[323416406,1713973867674,-1601.08,0.00012602,2]
[323416407,1713973867684,-568.3,0.00012602,2]
[323416408,1713973867694,-500.0,0.00012602,2]
[323416409,1713973867704,-500.0,0.00012602,2]
[323416410,1713973867714,-500.0,0.00012602,2]
[323416411,1713973867724,-500.0,0.00012602,2]
[323416412,1713973867735,-637.99705468,0.00012602,2]
[323416413,1713973867744,-523.14,0.00012602,2]
[323416414,1713973867755,-3252.85,0.00012602,2]
[323416415,1713973867765,-992.38,0.00012602,2]
[323416416,1713973867775,-500.0,0.00012602,2]
[323416417,1713973867788,-842.16,0.00012602,2]
[323416418,1713973867798,-500.0,0.00012602,2]
[323416419,1713973867809,-606.36,0.00012602,2]
[323416420,1713973867819,-1485.06,0.00012602,2]
[323416421,1713973867828,-500.0,0.00012602,2]
[323416422,1713973867838,-717.81,0.00012602,2]
[323416423,1713973867853,-1478.51,0.00012602,2]
[323416424,1713973867864,-500.0,0.00012602,2]
[323416425,1713973867875,-500.0,0.00012602,2]
[323416426,1713973867885,-548.59,0.00012602,2]
[323416427,1713973867905,-259.07980884,0.00012602,2]
[323416428,1713973867926,-1265.7,0.00012602,2]
[323416429,1713973867937,-500.0,0.00012602,2]
[323416430,1713973867952,-500.0,0.00012602,2]
[323416431,1713973867962,-915.02,0.00012602,2]
[323416432,1713973867977,-929.5,0.00012602,2]
[323416433,1713973867988,-820.02,0.00012602,2]
[323416434,1713973868002,-500.0,0.00012602,2]
[323416435,1713973868012,-500.0,0.00012602,2]
[323416436,1713973868025,-500.0,0.00012602,2]
[323416437,1713973868036,-2057.46,0.00012602,2]
[323416438,1713973868048,-500.0,0.00012602,2]
[323416439,1713973868059,-500.0,0.00012602,2]
[323416440,1713973868070,-731.11,0.00012602,2]
[323416441,1713973868083,-500.0,0.00012602,2]
[323416442,1713973868094,-1747.26,0.00012602,2]
[323416443,1713973868107,-527.58,0.00012602,2]
[323416444,1713973868117,-750.07,0.00012602,2]
[323416445,1713973868131,-1164.73,0.00012602,2]
[323416446,1713973868147,-500.0,0.00012602,2]
[323416447,1713973868165,-532.14957478,0.00012602,2]
[323416448,1713973868177,-2166.34,0.00012602,2]
[323416449,1713973868190,-845.41,0.00012602,2]
[323416450,1713973868200,-500.0,0.00012602,2]
[323416451,1713973868209,-500.0,0.00012602,2]
[323416452,1713973868228,-500.0,0.00012602,2]
[323416453,1713973868238,-507.30806039,0.00012602,2]
[323416454,1713973868250,-500.0,0.00012602,2]
[323416455,1713973868262,-818.75,0.00012602,2]
[323416456,1713973868274,-652.43,0.00012602,2]
[323416457,1713973868288,-871.72,0.00012602,2]
[323416458,1713973868298,-500.0,0.00012602,2]
[323416459,1713973868312,-500.0,0.00012602,2]
[323416460,1713973868325,-500.0,0.00012602,2]
[323416461,1713973868339,-2572.82,0.00012602,2]
[323416462,1713973868350,-497.89742531,0.00012602,2]
[323416463,1713973868360,-1436.45,0.00012602,2]
[323416464,1713973868370,-2295.35,0.00012602,2]
[323416465,1713973868379,-500.0,0.00012602,2]
[323416466,1713973868388,-500.0,0.00012602,2]
[323416467,1713973868400,-2029.6,0.00012602,2]
[323416468,1713973868409,-500.0,0.00012602,2]
[323416469,1713973868419,-8677.54,0.00012602,2]
[323416470,1713973868428,-500.0,0.00012602,2]
[323416471,1713973868438,-905.45,0.00012602,2]
[323416472,1713973868447,-500.0,0.00012602,2]
[323416473,1713973868457,-500.0,0.00012602,2]
[323416474,1713973868467,-558.24,0.00012602,2]
[323416475,1713973868476,-500.0,0.00012602,2]
[323416476,1713973868486,-1504.58,0.00012602,2]
[323416477,1713973868495,-500.0,0.00012602,2]
[323416478,1713973868504,-514.67,0.00012602,2]
[323416479,1713973868513,-500.0,0.00012602,2]
[323416480,1713973868523,-2367.93,0.00012602,2]
[323416481,1713973868532,-2049.01,0.00012602,2]
[323416482,1713973868542,-563.66,0.00012602,2]
[323416483,1713973868551,-500.0,0.00012602,2]
[323416484,1713973868560,-831.05,0.00012602,2]
[323416485,1713973868570,-832.5,0.00012602,2]
[323416486,1713973868580,-773.07,0.00012602,2]
[323416487,1713973868590,-1885.66,0.00012602,2]
[323416488,1713973868599,-500.0,0.00012602,2]
[323416489,1713973868609,-500.0,0.00012602,2]
[323416490,1713973868618,-500.0,0.00012602,2]
[323416491,1713973868628,-1225.98,0.00012602,2]
[323416492,1713973868638,-4156.64,0.00012602,2]
[323416493,1713973868652,-1912.6,0.00012602,2]
[323416494,1713973868662,-2203.2,0.00012602,2]
[323416495,1713973868671,-880.27,0.00012602,2]
[323416496,1713973868680,-3146.1,0.00012602,2]
[323416497,1713973868689,-1078.5,0.00012602,2]
[323416498,1713973868698,-705.82,0.00012602,2]
[323416499,1713973868707,-500.0,0.00012602,2]
[323416500,1713973868716,-500.0,0.00012602,2]
[323416501,1713973868727,-3820.63,0.00012602,2]
[323416502,1713973868737,-500.0,0.00012602,2]
[323416503,1713973868747,-2113.48,0.00012602,2]
[323416504,1713973868757,-838.0,0.00012602,2]
[323416505,1713973868766,-1931.43,0.00012602,2]
[323416506,1713973868775,-2703.75,0.00012602,2]
[323416507,1713973868785,-2822.26,0.00012602,2]
[323416508,1713973868794,-2276.67,0.00012602,2]
[323416509,1713973868804,-500.0,0.00012602,2]
[323416510,1713973868814,-500.0,0.00012602,2]
[323416511,1713973868823,-570.66,0.00012602,2]
[323416512,1713973868832,-500.0,0.00012602,2]
[323416513,1713973868842,-1592.29,0.00012602,2]
[323416514,1713973868851,-3059.74,0.00012602,2]
[323416515,1713973868860,-548.12,0.00012602,2]
[323416516,1713973868870,-500.0,0.00012602,2]
[323416517,1713973868881,-2461.5,0.00012602,2]
[323416518,1713973868894,-615.38,0.00012602,2]
[323416519,1713973868904,-1324.12,0.00012602,2]
[323416520,1713973868913,-3971.12,0.00012602,2]
[323416521,1713973868923,-500.0,0.00012602,2]
[323416522,1713973868933,-2626.7,0.00012602,2]
[323416523,1713973868944,-723.69,0.00012602,2]
[323416524,1713973868954,-500.0,0.00012602,2]
[323416525,1713973868965,-13126.48,0.00012602,2]
[323416526,1713973868974,-614.22,0.00012602,2]
[323416527,1713973868984,-4645.68,0.00012602,2]
[323416528,1713973868994,-11122.29,0.00012602,2]
[323416529,1713973869003,-506.68,0.00012602,2]
[323416530,1713973869013,-562.53,0.00012602,2]
[323416531,1713973869023,-2271.05,0.00012602,2]
[323416532,1713973869033,-1405.08,0.00012602,2]
[323416533,1713973869043,-867.56,0.00012602,2]
[323416534,1713973869053,-1234.4,0.00012602,2]
[323416535,1713973869063,-743.5,0.00012602,2]
[323416536,1713973869073,-8796.92,0.00012602,2]
[323416537,1713973869085,-500.0,0.00012602,2]
[323416538,1713973869097,-1738.01,0.00012602,2]
[323416539,1713973869106,-1578.64,0.00012602,2]
[323416540,1713973869116,-1828.37,0.00012602,2]
[323416541,1713973869126,-500.0,0.00012602,2]
[323416542,1713973869136,-9330.53,0.00012602,2]
[323416543,1713973869150,-795.52,0.00012602,2]
[323416544,1713973869160,-3280.03,0.00012602,2]
[323416545,1713973869171,-1090.54,0.00012602,2]
[323416546,1713973869182,-1095.8,0.00012602,2]
[323416547,1713973869192,-5837.67,0.00012602,2]
[323416548,1713973869202,-527.3,0.00012602,2]
[323416549,1713973869222,-878.78,0.00012602,2]
[323416550,1713973869233,-4350.58,0.00012602,2]
[323416551,1713973869244,-2413.37,0.00012602,2]
[323416552,1713973869254,-10692.15,0.00012602,2]
[323416553,1713973869264,-500.0,0.00012602,2]
[323416554,1713973869279,-500.0,0.00012602,2]
[323416555,1713973869293,-500.0,0.00012602,2]
[323416556,1713973869304,-2457.4,0.00012602,2]
[323416557,1713973869316,-5368.24,0.00012602,2]
[323416558,1713973869325,-11377.06,0.00012602,2]
[323416559,1713973869342,-1695.31,0.00012602,2]
[323416560,1713973869353,-809.12,0.00012602,2]
[323416561,1713973869364,-2886.54,0.00012602,2]
[323416562,1713973869374,-1930.29,0.00012602,2]
[323416563,1713973869383,-4022.2,0.00012602,2]
[323416564,1713973869395,-4740.44,0.00012602,2]
[323416565,1713973869404,-1781.75,0.00012602,2]
[323416566,1713973869414,-1741.92,0.00012602,2]
[323416567,1713973869424,-7921.2,0.00012602,2]
[323416568,1713973869434,-5590.58,0.00012602,2]
[323416569,1713973869443,-1092.68,0.00012602,2]
[323416570,1713973869460,-2482.67,0.00012602,2]
[323416571,1713973869475,-707.08,0.00012602,2]
[323416572,1713973869484,-731.57,0.00012602,2]
[323416573,1713973869493,-500.0,0.00012602,2]
[323416574,1713973869503,-706.86,0.00012602,2]
[323416575,1713973869512,-601.86,0.00012602,2]
[323416576,1713973869526,-521.04,0.00012602,2]
[323416577,1713973869535,-1326.14,0.00012602,2]
[323416578,1713973869557,-905.06,0.00012602,2]
[323416579,1713973869567,-2148.12,0.00012602,2]
[323416580,1713973869578,-500.0,0.00012602,2]
[323416581,1713973869587,-5074.84,0.00012602,2]
[323416582,1713973869597,-8100.5,0.00012602,2]
[323416583,1713973869607,-500.0,0.00012602,2]
[323416584,1713973869617,-3326.55,0.00012602,2]
[323416585,1713973869627,-1602.14,0.00012602,2]
[323416586,1713973869636,-500.0,0.00012602,2]
[323416587,1713973869649,-4497.56,0.00012602,2]
[323416588,1713973869659,-3026.64,0.00012602,2]
[323416589,1713973869668,-2052.23,0.00012602,2]
[323416590,1713973869678,-9822.69,0.00012602,2]
[323416591,1713973869691,-4405.07,0.00012602,2]
[323416592,1713973869700,-500.0,0.00012602,2]
[323416593,1713973869723,-717.53,0.00012602,2]
[323416594,1713973869732,-2098.14,0.00012602,2]
[323416595,1713973869742,-2191.42,0.00012602,2]
[323416596,1713973869753,-500.0,0.00012602,2]
[323416597,1713973869763,-5797.1,0.00012602,2]
[323416598,1713973869774,-2435.72,0.00012602,2]
[323416599,1713973869783,-1057.35,0.00012602,2]
[323416600,1713973869792,-527.14,0.00012602,2]
[323416601,1713973869812,-2137.67,0.00012602,2]
[323416602,1713973869822,-1518.64,0.00012602,2]
[323416603,1713973869831,-1185.13,0.00012602,2]
[323416604,1713973869841,-1109.54,0.00012602,2]
[323416605,1713973869850,-621.43,0.00012602,2]
[323416606,1713973869860,-3781.82,0.00012602,2]
[323416607,1713973869869,-2275.33,0.00012602,2]
[323416608,1713973869878,-527.32,0.00012602,2]
[323416609,1713973869888,-500.0,0.00012602,2]
[323416610,1713973869900,-1281.6,0.00012602,2]
[323416611,1713973869909,-555.23,0.00012602,2]
[323416612,1713973869918,-6060.52,0.00012602,2]
[323416613,1713973869927,-2236.66,0.00012602,2]
[323416614,1713973869937,-1388.93,0.00012602,2]
[323416615,1713973869946,-2081.12,0.00012602,2]
[323416616,1713973869955,-2902.5,0.00012602,2]
[323416617,1713973869964,-500.0,0.00012602,2]
[323416618,1713973869974,-500.0,0.00012602,2]
[323416619,1713973869984,-500.0,0.00012602,2]
[323416620,1713973869993,-500.0,0.00012602,2]
[323416621,1713973870003,-500.0,0.00012602,2]
[323416622,1713973870012,-4287.31,0.00012602,2]
[323416623,1713973870021,-1732.94,0.00012602,2]
[323416624,1713973870030,-8648.42,0.00012602,2]
[323416625,1713973870039,-2875.89,0.00012602,2]
[323416626,1713973870049,-3362.06,0.00012602,2]
[323416627,1713973870059,-1128.64,0.00012602,2]
[323416628,1713973870068,-500.0,0.00012602,2]
[323416629,1713973870078,-1102.28,0.00012602,2]
[323416630,1713973870088,-3321.44,0.00012602,2]
[323416631,1713973870097,-1467.03,0.00012602,2]
[323416632,1713973870106,-7496.52,0.00012602,2]
[323416633,1713973870116,-569.8,0.00012602,2]
[323416634,1713973870128,-17150.15,0.00012602,2]
[323416635,1713973870141,-500.0,0.00012602,2]
[323416636,1713973870151,-758.94,0.00012602,2]
[323416637,1713973870161,-912.96,0.00012602,2]
[323416638,1713973870171,-500.0,0.00012602,2]
[323416639,1713973870181,-500.0,0.00012602,2]
[323416640,1713973870192,-1328.77,0.00012602,2]
[323416641,1713973870202,-5671.3,0.00012602,2]
[323416642,1713973870213,-1124.32,0.00012602,2]
[323416643,1713973870223,-2912.7,0.00012602,2]
[323416644,1713973870233,-558.12,0.00012602,2]